Workbook

Sheet Student Data
A1: ID | B1: First Name | C1: Last Name | D1: Teacher | E1: Grade Level | F1: Class | G1: School | H1: Test 1 | I1: Test 2 | J1: Test 3 | K1: Test 4 | L1: Overall | M1: Gender | N1: Teacher Notes
A2: 38272 | B2: Robert | C2: Adams | D2: Barbara Hansen | E2: 7 | F2: Algebra 1 | G2: Mountain View | H2: 55 | I2: 62 | J2: 61 | K2: 55 | L2: =AVERAGE(H2:K2) -> 58.25 | M2: M
A3: 33026 | B3: Kiara | C3: Austin | D3: Barbara Hansen | E3: 7 | F3: Algebra 1 | G3: Mountain View | H3: 78 | I3: 82 | J3: 81 | K3: 80 | L3: =AVERAGE(H3:K3) -> 80.25 | M3: F
A4: 41970 | B4: Maxwell | C4: Black | D4: Barbara Hansen | E4: 7 | F4: Algebra 1 | G4: Mountain View | H4: 82 | I4: 80 | J4: 77 | K4: 70 | L4: =AVERAGE(H4:K4) -> 77.25 | M4: M
A5: 37670 | B5: Rachel | C5: Bowman | D5: Barbara Hansen | E5: 7 | F5: Algebra 1 | G5: Mountain View | H5: 62 | I5: 57 | J5: 56 | K5: 51 | L5: =AVERAGE(H5:K5) -> 56.5 | M5: F
A6: 41411 | B6: Miguel | C6: Bryant | D6: Barbara Hansen | E6: 7 | F6: Algebra 1 | G6: Mountain View | H6: 89 | I6: 86 | J6: 80 | K6: 84 | L6: =AVERAGE(H6:K6) -> 84.75 | M6: M
A7: 32510 | B7: Haley | C7: Douglas | D7: Barbara Hansen | E7: 7 | F7: Algebra 1 | G7: Mountain View | H7: 73 | I7: 74 | J7: 68 | K7: 72 | L7: =AVERAGE(H7:K7) -> 71.75 | M7: F
A8: 27952 | B8: Cristian | C8: Gardner | D8: Barbara Hansen | E8: 7 | F8: Algebra 1 | G8: Mountain View | H8: 66 | I8: 76 | J8: 79 | K8: 82 | L8: =AVERAGE(H8:K8) -> 75.75 | M8: M
A9: 32209 | B9: Carson | C9: Griffin | D9: Barbara Hansen | E9: 7 | F9: Algebra 1 | G9: Mountain View | H9: 67 | I9: 64 | J9: 57 | K9: 57 | L9: =AVERAGE(H9:K9) -> 61.25 | M9: M | N9: Has been absent frequently this year, and grades are suffering becuase of that.
A10: 28468 | B10: Marcus | C10: Harrison | D10: Barbara Hansen | E10: 7 | F10: Algebra 1 | G10: Mountain View | H10: 84 | I10: 80 | J10: 74 | K10: 69 | L10: =AVERAGE(H10:K10) -> 76.75 | M10: M
A11: 39648 | B11: Gabriela | C11: Henry | D11: Barbara Hansen | E11: 7 | F11: Algebra 1 | G11: Mountain View | H11: 72 | I11: 70 | J11: 68 | K11: 74 | L11: =AVERAGE(H11:K11) -> 71 | M11: F
A12: 29758 | B12: Austin | C12: Lopez | D12: Barbara Hansen | E12: 7 | F12: Algebra 1 | G12: Mountain View | H12: 74 | I12: 82 | J12: 74 | K12: 74 | L12: =AVERAGE(H12:K12) -> 76 | M12: M
A13: 38487 | B13: Alexa | C13: Lowe | D13: Barbara Hansen | E13: 7 | F13: Algebra 1 | G13: Mountain View | H13: 68 | I13: 76 | J13: 77 | K13: 74 | L13: =AVERAGE(H13:K13) -> 73.75 | M13: F
A14: 34531 | B14: Hunter | C14: Mitchell | D14: Barbara Hansen | E14: 7 | F14: Algebra 1 | G14: Mountain View | H14: 76 | I14: 81 | J14: 71 | K14: 65 | L14: =AVERAGE(H14:K14) -> 73.25 | M14: M
A15: 34402 | B15: Ian | C15: Ramirez | D15: Barbara Hansen | E15: 7 | F15: Algebra 1 | G15: Mountain View | H15: 67 | I15: 72 | J15: 72 | K15: 69 | L15: =AVERAGE(H15:K15) -> 70 | M15: M
A16: 35047 | B16: Cooper | C16: Reyes | D16: Barbara Hansen | E16: 7 | F16: Algebra 1 | G16: Mountain View | H16: 74 | I16: 70 | J16: 71 | K16: 72 | L16: =AVERAGE(H16:K16) -> 71.75 | M16: M
A17: 29328 | B17: Ehtan | C17: Taylor | D17: Barbara Hansen | E17: 7 | F17: Algebra 1 | G17: Mountain View | H17: 72 | I17: 71 | J17: 73 | K17: 72 | L17: =AVERAGE(H17:K17) -> 72 | M17: M
A18: 32381 | B18: Skylar | C18: Wagner | D18: Barbara Hansen | E18: 7 | F18: Algebra 1 | G18: Mountain View | H18: 64 | I18: 60 | J18: 55 | K18: 62 | L18: =AVERAGE(H18:K18) -> 60.25 | M18: F
A19: 41712 | B19: Peyton | C19: Warren | D19: Barbara Hansen | E19: 7 | F19: Algebra 1 | G19: Mountain View | H19: 61 | I19: 67 | J19: 64 | K19: 69 | L19: =AVERAGE(H19:K19) -> 65.25 | M19: F
A20: 27608 | B20: Liam | C20: Alexander | D20: Barbara Hansen | E20: 6 | F20: Intro to Pre-Algebra | G20: Mountain View | H20: 72 | I20: 81 | J20: 72 | K20: 67 | L20: =AVERAGE(H20:K20) -> 73 | M20: M
A21: 31564 | B21: Javier | C21: Andrews | D21: Barbara Hansen | E21: 6 | F21: Intro to Pre-Algebra | G21: Mountain View | H21: 80 | I21: 77 | J21: 81 | K21: 77 | L21: =AVERAGE(H21:K21) -> 78.75 | M21: M
A22: 39218 | B22: Savannah | C22: Carlson | D22: Barbara Hansen | E22: 6 | F22: Intro to Pre-Algebra | G22: Mountain View | H22: 61 | I22: 60 | J22: 50 | K22: 44 | L22: =AVERAGE(H22:K22) -> 53.75 | M22: F
A23: 30231 | B23: Sadie | C23: Duncan | D23: Barbara Hansen | E23: 6 | F23: Intro to Pre-Algebra | G23: Mountain View | H23: 55 | I23: 51 | J23: 53 | K23: 55 | L23: =AVERAGE(H23:K23) -> 53.5 | M23: F
A24: 39863 | B24: Dakota | C24: Ferguson | D24: Barbara Hansen | E24: 6 | F24: Intro to Pre-Algebra | G24: Mountain View | H24: 69 | I24: 72 | J24: 71 | K24: 73 | L24: =AVERAGE(H24:K24) -> 71.25 | M24: M
A25: 38659 | B25: Tiffany | C25: Fox | D25: Barbara Hansen | E25: 6 | F25: Intro to Pre-Algebra | G25: Mountain View | H25: 56 | I25: 65 | J25: 63 | K25: 59 | L25: =AVERAGE(H25:K25) -> 60.75 | M25: F
A26: 29500 | B26: Elizabeth | C26: Garza | D26: Barbara Hansen | E26: 6 | F26: Intro to Pre-Algebra | G26: Mountain View | H26: 79 | I26: 77 | J26: 79 | K26: 84 | L26: =AVERAGE(H26:K26) -> 79.75 | M26: F
A27: 40594 | B27: Mariah | C27: Gonzales | D27: Barbara Hansen | E27: 6 | F27: Intro to Pre-Algebra | G27: Mountain View | H27: 82 | I27: 78 | J27: 69 | K27: 71 | L27: =AVERAGE(H27:K27) -> 75 | M27: F
A28: 36810 | B28: Maya | C28: Henderson | D28: Barbara Hansen | E28: 6 | F28: Intro to Pre-Algebra | G28: Mountain View | H28: 82 | I28: 78 | J28: 75 | K28: 71 | L28: =AVERAGE(H28:K28) -> 76.5 | M28: F
A29: 34832 | B29: Colton | C29: Mason | D29: Barbara Hansen | E29: 6 | F29: Intro to Pre-Algebra | G29: Mountain View | H29: 65 | I29: 73 | J29: 77 | K29: 84 | L29: =AVERAGE(H29:K29) -> 74.75 | M29: M
A30: 26533 | B30: Sophie | C30: Mcdonald | D30: Barbara Hansen | E30: 6 | F30: Intro to Pre-Algebra | G30: Mountain View | H30: 58 | I30: 65 | J30: 69 | K30: 75 | L30: =AVERAGE(H30:K30) -> 66.75 | M30: F
A31: 31392 | B31: Alejandro | C31: Myers | D31: Barbara Hansen | E31: 6 | F31: Intro to Pre-Algebra | G31: Mountain View | H31: 66 | I31: 66 | J31: 71 | K31: 76 | L31: =AVERAGE(H31:K31) -> 69.75 | M31: M
A32: 41583 | B32: Jazmin | C32: Oliver | D32: Barbara Hansen | E32: 6 | F32: Intro to Pre-Algebra | G32: Mountain View | H32: 76 | I32: 72 | J32: 68 | K32: 68 | L32: =AVERAGE(H32:K32) -> 71 | M32: F
A33: 32037 | B33: Shane | C33: Ray | D33: Barbara Hansen | E33: 6 | F33: Intro to Pre-Algebra | G33: Mountain View | H33: 59 | I33: 56 | J33: 60 | K33: 56 | L33: =AVERAGE(H33:K33) -> 57.75 | M33: M
A34: 34660 | B34: Malachi | C34: Ryan | D34: Barbara Hansen | E34: 6 | F34: Intro to Pre-Algebra | G34: Mountain View | H34: 90 | I34: 93 | J34: 83 | K34: 82 | L34: =AVERAGE(H34:K34) -> 87 | M34: M
A35: 30489 | B35: Edwin | C35: Sims | D35: Barbara Hansen | E35: 6 | F35: Intro to Pre-Algebra | G35: Mountain View | H35: 65 | I35: 64 | J35: 55 | K35: 52 | L35: =AVERAGE(H35:K35) -> 59 | M35: M
A36: 29285 | B36: Brody | C36: Berry | D36: Barbara Hansen | E36: 6 | F36: Pre-Algebra | G36: Mountain View | H36: 70 | I36: 79 | J36: 76 | K36: 81 | L36: =AVERAGE(H36:K36) -> 76.5 | M36: M
A37: 38831 | B37: Kendall | C37: Bradley | D37: Barbara Hansen | E37: 7 | F37: Pre-Algebra | G37: Mountain View | H37: 80 | I37: 79 | J37: 70 | K37: 64 | L37: =AVERAGE(H37:K37) -> 73.25 | M37: F
A38: 41454 | B38: Sarah | C38: Burton | D38: Barbara Hansen | E38: 7 | F38: Pre-Algebra | G38: Mountain View | H38: 64 | I38: 68 | J38: 70 | K38: 73 | L38: =AVERAGE(H38:K38) -> 68.75 | M38: F
A39: 30317 | B39: Jesse | C39: Diaz | D39: Barbara Hansen | E39: 6 | F39: Pre-Algebra | G39: Mountain View | H39: 79 | I39: 86 | J39: 90 | K39: 92 | L39: =AVERAGE(H39:K39) -> 86.75 | M39: M
A40: 37455 | B40: Josiah | C40: Dixon | D40: Barbara Hansen | E40: 7 | F40: Pre-Algebra | G40: Mountain View | H40: 78 | I40: 82 | J40: 82 | K40: 80 | L40: =AVERAGE(H40:K40) -> 80.5 | M40: M
A41: 32166 | B41: Lauren | C41: Fuller | D41: Barbara Hansen | E41: 7 | F41: Pre-Algebra | G41: Mountain View | H41: 68 | I41: 63 | J41: 59 | K41: 54 | L41: =AVERAGE(H41:K41) -> 61 | M41: F
A42: 27178 | B42: Gabrielle | C42: Graves | D42: Barbara Hansen | E42: 6 | F42: Pre-Algebra | G42: Mountain View | H42: 72 | I42: 71 | J42: 67 | K42: 60 | L42: =AVERAGE(H42:K42) -> 67.5 | M42: F
A43: 38444 | B43: Victor | C43: Hamilton | D43: Barbara Hansen | E43: 7 | F43: Pre-Algebra | G43: Mountain View | H43: 96 | I43: 100 | J43: 100 | K43: 98 | L43: =AVERAGE(H43:K43) -> 98.5 | M43: M
A44: 29457 | B44: Amanda | C44: Horton | D44: Barbara Hansen | E44: 6 | F44: Pre-Algebra | G44: Mountain View | H44: 69 | I44: 75 | J44: 68 | K44: 61 | L44: =AVERAGE(H44:K44) -> 68.25 | M44: F
A45: 39476 | B45: Gage | C45: Hudson | D45: Barbara Hansen | E45: 7 | F45: Pre-Algebra | G45: Mountain View | H45: 66 | I45: 72 | J45: 68 | K45: 73 | L45: =AVERAGE(H45:K45) -> 69.75 | M45: M
A46: 31263 | B46: Daisy | C46: Hudson | D46: Barbara Hansen | E46: 7 | F46: Pre-Algebra | G46: Mountain View | H46: 68 | I46: 78 | J46: 77 | K46: 70 | L46: =AVERAGE(H46:K46) -> 73.25 | M46: F
A47: 35735 | B47: Preston | C47: Hunt | D47: Barbara Hansen | E47: 6 | F47: Pre-Algebra | G47: Mountain View | H47: 63 | I47: 71 | J47: 74 | K47: 68 | L47: =AVERAGE(H47:K47) -> 69 | M47: M
A48: 38057 | B48: Connor | C48: James | D48: Barbara Hansen | E48: 6 | F48: Pre-Algebra | G48: Mountain View | H48: 69 | I48: 70 | J48: 60 | K48: 55 | L48: =AVERAGE(H48:K48) -> 63.5 | M48: M
A49: 25200 | B49: Carter | C49: Jenkins | D49: Barbara Hansen | E49: 7 | F49: Pre-Algebra | G49: Mountain View | H49: 71 | I49: 72 | J49: 75 | K49: 74 | L49: =AVERAGE(H49:K49) -> 73 | M49: M
A50: 27479 | B50: Bryson | C50: Johnston | D50: Barbara Hansen | E50: 6 | F50: Pre-Algebra | G50: Mountain View | H50: 72 | I50: 79 | J50: 79 | K50: 74 | L50: =AVERAGE(H50:K50) -> 76 | M50: M
A51: 35305 | B51: Brianna | C51: Kim | D51: Barbara Hansen | E51: 6 | F51: Pre-Algebra | G51: Mountain View | H51: 76 | I51: 71 | J51: 65 | K51: 65 | L51: =AVERAGE(H51:K51) -> 69.25 | M51: F
A52: 35950 | B52: Edgar | C52: Lawrence | D52: Barbara Hansen | E52: 7 | F52: Pre-Algebra | G52: Mountain View | H52: 73 | I52: 71 | J52: 76 | K52: 83 | L52: =AVERAGE(H52:K52) -> 75.75 | M52: M
A53: 36294 | B53: Jonathan | C53: Martinez | D53: Barbara Hansen | E53: 7 | F53: Pre-Algebra | G53: Mountain View | H53: 77 | I53: 74 | J53: 70 | K53: 73 | L53: =AVERAGE(H53:K53) -> 73.5 | M53: M
A54: 40250 | B54: Nicole | C54: May | D54: Barbara Hansen | E54: 7 | F54: Pre-Algebra | G54: Mountain View | H54: 80 | I54: 75 | J54: 80 | K54: 85 | L54: =AVERAGE(H54:K54) -> 80 | M54: F
A55: 28898 | B55: Kennedy | C55: Morales | D55: Barbara Hansen | E55: 7 | F55: Pre-Algebra | G55: Mountain View | H55: 71 | I55: 81 | J55: 77 | K55: 77 | L55: =AVERAGE(H55:K55) -> 76.5 | M55: F
A56: 31220 | B56: Damian | C56: Olson | D56: Barbara Hansen | E56: 7 | F56: Pre-Algebra | G56: Mountain View | H56: 66 | I56: 65 | J56: 62 | K56: 61 | L56: =AVERAGE(H56:K56) -> 63.5 | M56: M
A57: 30833 | B57: Mark | C57: Owens | D57: Barbara Hansen | E57: 7 | F57: Pre-Algebra | G57: Mountain View | H57: 80 | I57: 76 | J57: 75 | K57: 79 | L57: =AVERAGE(H57:K57) -> 77.5 | M57: M
A58: 38917 | B58: Levi | C58: Palmer | D58: Barbara Hansen | E58: 6 | F58: Pre-Algebra | G58: Mountain View | H58: 71 | I58: 67 | J58: 64 | K58: 65 | L58: =AVERAGE(H58:K58) -> 66.75 | M58: M
A59: 37240 | B59: Wyatt | C59: Perry | D59: Barbara Hansen | E59: 7 | F59: Pre-Algebra | G59: Mountain View | H59: 99 | I59: 97 | J59: 88 | K59: 93 | L59: =AVERAGE(H59:K59) -> 94.25 | M59: M
A60: 39433 | B60: Devon | C60: Peters | D60: Barbara Hansen | E60: 6 | F60: Pre-Algebra | G60: Mountain View | H60: 74 | I60: 80 | J60: 80 | K60: 83 | L60: =AVERAGE(H60:K60) -> 79.25 | M60: M
A61: 33843 | B61: Lucas | C61: Richardson | D61: Barbara Hansen | E61: 7 | F61: Pre-Algebra | G61: Mountain View | H61: 84 | I61: 83 | J61: 79 | K61: 81 | L61: =AVERAGE(H61:K61) -> 81.75 | M61: M
A62: 25157 | B62: Noah | C62: Robinson | D62: Barbara Hansen | E62: 6 | F62: Pre-Algebra | G62: Mountain View | H62: 82 | I62: 91 | J62: 93 | K62: 87 | L62: =AVERAGE(H62:K62) -> 88.25 | M62: M
A63: 29844 | B63: Anna | C63: Romero | D63: Barbara Hansen | E63: 7 | F63: Pre-Algebra | G63: Mountain View | H63: 82 | I63: 79 | J63: 69 | K63: 73 | L63: =AVERAGE(H63:K63) -> 75.75 | M63: F
A64: 29629 | B64: Leah | C64: Sutton | D64: Barbara Hansen | E64: 7 | F64: Pre-Algebra | G64: Mountain View | H64: 80 | I64: 86 | J64: 80 | K64: 79 | L64: =AVERAGE(H64:K64) -> 81.25 | M64: F
A65: 32768 | B65: Gregory | C65: Vasquez | D65: Barbara Hansen | E65: 7 | F65: Pre-Algebra | G65: Mountain View | H65: 80 | I65: 82 | J65: 81 | K65: 83 | L65: =AVERAGE(H65:K65) -> 81.5 | M65: M
A66: 37412 | B66: Sean | C66: Ward | D66: Barbara Hansen | E66: 6 | F66: Pre-Algebra | G66: Mountain View | H66: 63 | I66: 67 | J66: 67 | K66: 70 | L66: =AVERAGE(H66:K66) -> 66.75 | M66: M
A67: 34918 | B67: Emmanuel | C67: Weaver | D67: Barbara Hansen | E67: 7 | F67: Pre-Algebra | G67: Mountain View | H67: 74 | I67: 70 | J67: 70 | K67: 74 | L67: =AVERAGE(H67:K67) -> 72 | M67: M
A68: 36724 | B68: Hannah | C68: Alvarez | D68: Frank Wilson | E68: 7 | F68: Algebra 1 | G68: Mountain View | H68: 70 | I68: 70 | J68: 70 | K68: 72 | L68: =AVERAGE(H68:K68) -> 70.5 | M68: F
A69: 37928 | B69: Kate | C69: Andrews | D69: Frank Wilson | E69: 7 | F69: Algebra 1 | G69: Mountain View | H69: 74 | I69: 74 | J69: 68 | K69: 70 | L69: =AVERAGE(H69:K69) -> 71.5 | M69: F
A70: 26662 | B70: Angel | C70: Black | D70: Frank Wilson | E70: 7 | F70: Algebra 1 | G70: Mountain View | H70: 70 | I70: 80 | J70: 74 | K70: 72 | L70: =AVERAGE(H70:K70) -> 74 | M70: F
A71: 26060 | B71: Conner | C71: Bradley | D71: Frank Wilson | E71: 7 | F71: Algebra 1 | G71: Mountain View | H71: 65 | I71: 62 | J71: 67 | K71: 70 | L71: =AVERAGE(H71:K71) -> 66 | M71: M
A72: 41067 | B72: Isaac | C72: Campbell | D72: Frank Wilson | E72: 7 | F72: Algebra 1 | G72: Mountain View | H72: 71 | I72: 76 | J72: 76 | K72: 72 | L72: =AVERAGE(H72:K72) -> 73.75 | M72: M
A73: 27092 | B73: Jeffrey | C73: Carroll | D73: Frank Wilson | E73: 7 | F73: Algebra 1 | G73: Mountain View | H73: 77 | I73: 87 | J73: 85 | K73: 90 | L73: =AVERAGE(H73:K73) -> 84.75 | M73: M
A74: 37498 | B74: Jack | C74: Carter | D74: Frank Wilson | E74: 7 | F74: Algebra 1 | G74: Mountain View | H74: 79 | I74: 78 | J74: 83 | K74: 81 | L74: =AVERAGE(H74:K74) -> 80.25 | M74: M
A75: 34230 | B75: Faith | C75: Curtis | D75: Frank Wilson | E75: 7 | F75: Algebra 1 | G75: Mountain View | H75: 67 | I75: 71 | J75: 71 | K75: 77 | L75: =AVERAGE(H75:K75) -> 71.5 | M75: F
A76: 29414 | B76: Ashlyn | C76: Gardner | D76: Frank Wilson | E76: 7 | F76: Algebra 1 | G76: Mountain View | H76: 78 | I76: 79 | J76: 75 | K76: 70 | L76: =AVERAGE(H76:K76) -> 75.5 | M76: F
A77: 35821 | B77: Collin | C77: Hawkins | D77: Frank Wilson | E77: 7 | F77: Algebra 1 | G77: Mountain View | H77: 73 | I77: 76 | J77: 67 | K77: 70 | L77: =AVERAGE(H77:K77) -> 71.5 | M77: M
A78: 26748 | B78: Devin | C78: Hughes | D78: Frank Wilson | E78: 7 | F78: Algebra 1 | G78: Mountain View | H78: 79 | I78: 74 | J78: 68 | K78: 64 | L78: =AVERAGE(H78:K78) -> 71.25 | M78: M
A79: 37885 | B79: Katelyn | C79: Jennings | D79: Frank Wilson | E79: 7 | F79: Algebra 1 | G79: Mountain View | H79: 69 | I79: 67 | J79: 57 | K79: 60 | L79: =AVERAGE(H79:K79) -> 63.25 | M79: F
A80: 26232 | B80: Gabriel | C80: King | D80: Frank Wilson | E80: 7 | F80: Algebra 1 | G80: Mountain View | H80: 68 | I80: 75 | J80: 79 | K80: 83 | L80: =AVERAGE(H80:K80) -> 76.25 | M80: M
A81: 35391 | B81: Emily | C81: Meyer | D81: Frank Wilson | E81: 7 | F81: Algebra 1 | G81: Mountain View | H81: 80 | I81: 89 | J81: 89 | K81: 86 | L81: =AVERAGE(H81:K81) -> 86 | M81: F
A82: 35606 | B82: Joseph | C82: Moore | D82: Frank Wilson | E82: 7 | F82: Algebra 1 | G82: Mountain View | H82: 66 | I82: 70 | J82: 75 | K82: 73 | L82: =AVERAGE(H82:K82) -> 71 | M82: M
A83: 25286 | B83: Juan | C83: Morgan | D83: Frank Wilson | E83: 7 | F83: Algebra 1 | G83: Mountain View | H83: 67 | I83: 64 | J83: 68 | K83: 70 | L83: =AVERAGE(H83:K83) -> 67.25 | M83: M
A84: 28425 | B84: Summer | C84: Pierce | D84: Frank Wilson | E84: 7 | F84: Algebra 1 | G84: Mountain View | H84: 65 | I84: 63 | J84: 60 | K84: 67 | L84: =AVERAGE(H84:K84) -> 63.75 | M84: F
A85: 35477 | B85: Alexia | C85: Snyder | D85: Frank Wilson | E85: 7 | F85: Algebra 1 | G85: Mountain View | H85: 73 | I85: 76 | J85: 75 | K85: 74 | L85: =AVERAGE(H85:K85) -> 74.5 | M85: F
A86: 41282 | B86: Genesis | C86: Watkins | D86: Frank Wilson | E86: 7 | F86: Algebra 1 | G86: Mountain View | H86: 72 | I86: 74 | J86: 79 | K86: 75 | L86: =AVERAGE(H86:K86) -> 75 | M86: F
A87: 33714 | B87: Nolan | C87: Arnold | D87: Frank Wilson | E87: 6 | F87: Intro to Pre-Algebra | G87: Mountain View | H87: 81 | I87: 77 | J87: 81 | K87: 88 | L87: =AVERAGE(H87:K87) -> 81.75 | M87: M
A88: 27006 | B88: Audrey | C88: Barnes | D88: Frank Wilson | E88: 6 | F88: Intro to Pre-Algebra | G88: Mountain View | H88: 77 | I88: 74 | J88: 65 | K88: 64 | L88: =AVERAGE(H88:K88) -> 70 | M88: F
A89: 36380 | B89: Madeline | C89: Caldwell | D89: Frank Wilson | E89: 6 | F89: Intro to Pre-Algebra | G89: Mountain View | H89: 90 | I89: 96 | J89: 86 | K89: 92 | L89: =AVERAGE(H89:K89) -> 91 | M89: F
A90: 28253 | B90: Mario | C90: Chavez | D90: Frank Wilson | E90: 6 | F90: Intro to Pre-Algebra | G90: Mountain View | H90: 82 | I90: 80 | J90: 78 | K90: 75 | L90: =AVERAGE(H90:K90) -> 78.75 | M90: M
A91: 29715 | B91: Tanner | C91: Gordon | D91: Frank Wilson | E91: 6 | F91: Intro to Pre-Algebra | G91: Mountain View | H91: 63 | I91: 63 | J91: 55 | K91: 58 | L91: =AVERAGE(H91:K91) -> 59.75 | M91: M
A92: 32811 | B92: Mikayla | C92: Grant | D92: Frank Wilson | E92: 6 | F92: Intro to Pre-Algebra | G92: Mountain View | H92: 85 | I92: 85 | J92: 75 | K92: 76 | L92: =AVERAGE(H92:K92) -> 80.25 | M92: F
A93: 35563 | B93: Trinity | C93: Jimenez | D93: Frank Wilson | E93: 6 | F93: Intro to Pre-Algebra | G93: Mountain View | H93: 94 | I93: 93 | J93: 93 | K93: 88 | L93: =AVERAGE(H93:K93) -> 92 | M93: F
A94: 25630 | B94: Omar | C94: Knight | D94: Frank Wilson | E94: 6 | F94: Intro to Pre-Algebra | G94: Mountain View | H94: 83 | I94: 83 | J94: 80 | K94: 87 | L94: =AVERAGE(H94:K94) -> 83.25 | M94: M
A95: 25587 | B95: Francisco | C95: Matthews | D95: Frank Wilson | E95: 6 | F95: Intro to Pre-Algebra | G95: Mountain View | H95: 75 | I95: 76 | J95: 76 | K95: 76 | L95: =AVERAGE(H95:K95) -> 75.75 | M95: M
A96: 40766 | B96: Margaret | C96: Mills | D96: Frank Wilson | E96: 6 | F96: Intro to Pre-Algebra | G96: Mountain View | H96: 81 | I96: 84 | J96: 82 | K96: 79 | L96: =AVERAGE(H96:K96) -> 81.5 | M96: F
A97: 41798 | B97: Luis | C97: Murphy | D97: Frank Wilson | E97: 6 | F97: Intro to Pre-Algebra | G97: Mountain View | H97: 84 | I97: 90 | J97: 95 | K97: 92 | L97: =AVERAGE(H97:K97) -> 90.25 | M97: M
A98: 24899 | B98: Carlos | C98: Peterson | D98: Frank Wilson | E98: 6 | F98: Intro to Pre-Algebra | G98: Mountain View | H98: 73 | I98: 69 | J98: 71 | K98: 66 | L98: =AVERAGE(H98:K98) -> 69.75 | M98: M
A99: 29070 | B99: Giovanni | C99: Ruiz | D99: Frank Wilson | E99: 6 | F99: Intro to Pre-Algebra | G99: Mountain View | H99: 71 | I99: 66 | J99: 71 | K99: 77 | L99: =AVERAGE(H99:K99) -> 71.25 | M99: M
A100: 34015 | B100: Aaron | C100: Sanchez | D100: Frank Wilson | E100: 6 | F100: Intro to Pre-Algebra | G100: Mountain View | H100: 67 | I100: 64 | J100: 55 | K100: 55 | L100: =AVERAGE(H100:K100) -> 60.25 | M100: M
A101: 27393 | B101: Jalen | C101: Schmidt | D101: Frank Wilson | E101: 6 | F101: Intro to Pre-Algebra | G101: Mountain View | H101: 68 | I101: 78 | J101: 77 | K101: 83 | L101: =AVERAGE(H101:K101) -> 76.5 | M101: M
A102: 27866 | B102: Richard | C102: Washington | D102: Frank Wilson | E102: 6 | F102: Intro to Pre-Algebra | G102: Mountain View | H102: 60 | I102: 68 | J102: 71 | K102: 77 | L102: =AVERAGE(H102:K102) -> 69 | M102: M
A103: 32596 | B103: Karina | C103: Williamson | D103: Frank Wilson | E103: 6 | F103: Intro to Pre-Algebra | G103: Mountain View | H103: 71 | I103: 69 | J103: 67 | K103: 73 | L103: =AVERAGE(H103:K103) -> 70 | M103: F
A104: 29543 | B104: Martin | C104: Banks | D104: Frank Wilson | E104: 7 | F104: Pre-Algebra | G104: Mountain View | H104: 81 | I104: 81 | J104: 80 | K104: 83 | L104: =AVERAGE(H104:K104) -> 81.25 | M104: M
A105: 39519 | B105: Diego | C105: Bennett | D105: Frank Wilson | E105: 6 | F105: Pre-Algebra | G105: Mountain View | H105: 75 | I105: 77 | J105: 72 | K105: 72 | L105: =AVERAGE(H105:K105) -> 74 | M105: M
A106: 33155 | B106: Danielle | C106: Bryant | D106: Frank Wilson | E106: 6 | F106: Pre-Algebra | G106: Mountain View | H106: 70 | I106: 67 | J106: 65 | K106: 71 | L106: =AVERAGE(H106:K106) -> 68.25 | M106: F
A107: 40293 | B107: Eva | C107: Carroll | D107: Frank Wilson | E107: 6 | F107: Pre-Algebra | G107: Mountain View | H107: 78 | I107: 78 | J107: 72 | K107: 65 | L107: =AVERAGE(H107:K107) -> 73.25 | M107: F
A108: 32725 | B108: Lucy | C108: Chavez | D108: Frank Wilson | E108: 7 | F108: Pre-Algebra | G108: Mountain View | H108: 89 | I108: 87 | J108: 85 | K108: 79 | L108: =AVERAGE(H108:K108) -> 85 | M108: F
A109: 31607 | B109: Gavin | C109: Collins | D109: Frank Wilson | E109: 6 | F109: Pre-Algebra | G109: Mountain View | H109: 77 | I109: 86 | J109: 78 | K109: 73 | L109: =AVERAGE(H109:K109) -> 78.5 | M109: M
A110: 32682 | B110: Kyle | C110: Cook | D110: Frank Wilson | E110: 7 | F110: Pre-Algebra | G110: Mountain View | H110: 70 | I110: 75 | J110: 74 | K110: 78 | L110: =AVERAGE(H110:K110) -> 74.25 | M110: M
A111: 39003 | B111: Peyton | C111: Cunningham | D111: Frank Wilson | E111: 7 | F111: Pre-Algebra | G111: Mountain View | H111: 60 | I111: 69 | J111: 63 | K111: 64 | L111: =AVERAGE(H111:K111) -> 64 | M111: M
A112: 31177 | B112: Alan | C112: Daniels | D112: Frank Wilson | E112: 6 | F112: Pre-Algebra | G112: Mountain View | H112: 70 | I112: 79 | J112: 70 | K112: 77 | L112: =AVERAGE(H112:K112) -> 74 | M112: M
A113: 33241 | B113: Laura | C113: Daniels | D113: Frank Wilson | E113: 7 | F113: Pre-Algebra | G113: Mountain View | H113: 72 | I113: 79 | J113: 80 | K113: 86 | L113: =AVERAGE(H113:K113) -> 79.25 | M113: F
A114: 26877 | B114: Julia | C114: Day | D114: Frank Wilson | E114: 6 | F114: Pre-Algebra | G114: Mountain View | H114: 68 | I114: 66 | J114: 56 | K114: 61 | L114: =AVERAGE(H114:K114) -> 62.75 | M114: F
A115: 33628 | B115: Eli | C115: Dunn | D115: Frank Wilson | E115: 6 | F115: Pre-Algebra | G115: Mountain View | H115: 75 | I115: 72 | J115: 75 | K115: 81 | L115: =AVERAGE(H115:K115) -> 75.75 | M115: M
A116: 41841 | B116: Jason | C116: Edwards | D116: Frank Wilson | E116: 7 | F116: Pre-Algebra | G116: Mountain View | H116: 73 | I116: 72 | J116: 71 | K116: 64 | L116: =AVERAGE(H116:K116) -> 70 | M116: M
A117: 25974 | B117: Chelsea | C117: Fields | D117: Frank Wilson | E117: 6 | F117: Pre-Algebra | G117: Mountain View | H117: 71 | I117: 75 | J117: 75 | K117: 80 | L117: =AVERAGE(H117:K117) -> 75.25 | M117: F
A118: 40465 | B118: Garrett | C118: Fisher | D118: Frank Wilson | E118: 7 | F118: Pre-Algebra | G118: Mountain View | H118: 72 | I118: 70 | J118: 70 | K118: 74 | L118: =AVERAGE(H118:K118) -> 71.5 | M118: M
A119: 24942 | B119: Wesley | C119: Franklin | D119: Frank Wilson | E119: 6 | F119: Pre-Algebra | G119: Mountain View | H119: 96 | I119: 96 | J119: 98 | K119: 98 | L119: =AVERAGE(H119:K119) -> 97 | M119: M
A120: 39347 | B120: Vincent | C120: Gibson | D120: Frank Wilson | E120: 6 | F120: Pre-Algebra | G120: Mountain View | H120: 97 | I120: 92 | J120: 84 | K120: 91 | L120: =AVERAGE(H120:K120) -> 91 | M120: M
A121: 34316 | B121: Giselle | C121: Greene | D121: Frank Wilson | E121: 7 | F121: Pre-Algebra | G121: Mountain View | H121: 75 | I121: 70 | J121: 70 | K121: 74 | L121: =AVERAGE(H121:K121) -> 72.25 | M121: F
A122: 28511 | B122: Erin | C122: Griffin | D122: Frank Wilson | E122: 7 | F122: Pre-Algebra | G122: Mountain View | H122: 79 | I122: 83 | J122: 87 | K122: 91 | L122: =AVERAGE(H122:K122) -> 85 | M122: F
A123: 33069 | B123: Shawn | C123: Harper | D123: Frank Wilson | E123: 6 | F123: Pre-Algebra | G123: Mountain View | H123: 60 | I123: 58 | J123: 60 | K123: 54 | L123: =AVERAGE(H123:K123) -> 58 | M123: M
A124: 36165 | B124: Ryan | C124: Harris | D124: Frank Wilson | E124: 7 | F124: Pre-Algebra | G124: Mountain View | H124: 61 | I124: 59 | J124: 56 | K124: 55 | L124: =AVERAGE(H124:K124) -> 57.75 | M124: M
A125: 26576 | B125: Chloe | C125: Lynch | D125: Frank Wilson | E125: 7 | F125: Pre-Algebra | G125: Mountain View | H125: 66 | I125: 72 | J125: 67 | K125: 70 | L125: =AVERAGE(H125:K125) -> 68.75 | M125: F
A126: 31521 | B126: Gianna | C126: Mason | D126: Frank Wilson | E126: 6 | F126: Pre-Algebra | G126: Mountain View | H126: 77 | I126: 76 | J126: 76 | K126: 74 | L126: =AVERAGE(H126:K126) -> 75.75 | M126: F
A127: 26404 | B127: Kaleb | C127: Mcdonald | D127: Frank Wilson | E127: 7 | F127: Pre-Algebra | G127: Mountain View | H127: 72 | I127: 78 | J127: 68 | K127: 74 | L127: =AVERAGE(H127:K127) -> 73 | M127: M
A128: 28769 | B128: Sara | C128: Mckinney | D128: Frank Wilson | E128: 7 | F128: Pre-Algebra | G128: Mountain View | H128: 57 | I128: 58 | J128: 52 | K128: 55 | L128: =AVERAGE(H128:K128) -> 55.5 | M128: F
A129: 41239 | B129: Caitlin | C129: Payne | D129: Frank Wilson | E129: 7 | F129: Pre-Algebra | G129: Mountain View | H129: 74 | I129: 84 | J129: 77 | K129: 77 | L129: =AVERAGE(H129:K129) -> 78 | M129: F
A130: 36681 | B130: Spencer | C130: Perkins | D130: Frank Wilson | E130: 7 | F130: Pre-Algebra | G130: Mountain View | H130: 65 | I130: 64 | J130: 59 | K130: 59 | L130: =AVERAGE(H130:K130) -> 61.75 | M130: M
A131: 39820 | B131: Jocelyn | C131: Perry | D131: Frank Wilson | E131: 7 | F131: Pre-Algebra | G131: Mountain View | H131: 72 | I131: 71 | J131: 66 | K131: 63 | L131: =AVERAGE(H131:K131) -> 68 | M131: F
A132: 36595 | B132: Courtney | C132: Reyes | D132: Frank Wilson | E132: 7 | F132: Pre-Algebra | G132: Mountain View | H132: 75 | I132: 71 | J132: 67 | K132: 64 | L132: =AVERAGE(H132:K132) -> 69.25 | M132: F
A133: 37713 | B133: Colby | C133: Richards | D133: Frank Wilson | E133: 6 | F133: Pre-Algebra | G133: Mountain View | H133: 80 | I133: 76 | J133: 75 | K133: 69 | L133: =AVERAGE(H133:K133) -> 75 | M133: M
A134: 30145 | B134: Cassandra | C134: Riley | D134: Frank Wilson | E134: 7 | F134: Pre-Algebra | G134: Mountain View | H134: 77 | I134: 77 | J134: 72 | K134: 65 | L134: =AVERAGE(H134:K134) -> 72.75 | M134: F
A135: 39132 | B135: Jayla | C135: Ruiz | D135: Frank Wilson | E135: 7 | F135: Pre-Algebra | G135: Mountain View | H135: 76 | I135: 75 | J135: 78 | K135: 74 | L135: =AVERAGE(H135:K135) -> 75.75 | M135: F
A136: 31865 | B136: Bryce | C136: Sullivan | D136: Frank Wilson | E136: 6 | F136: Pre-Algebra | G136: Mountain View | H136: 74 | I136: 74 | J136: 66 | K136: 73 | L136: =AVERAGE(H136:K136) -> 71.75 | M136: M
A137: 40207 | B137: Addison | C137: Terry | D137: Frank Wilson | E137: 7 | F137: Pre-Algebra | G137: Mountain View | H137: 76 | I137: 71 | J137: 67 | K137: 70 | L137: =AVERAGE(H137:K137) -> 71 | M137: F
A138: 39949 | B138: Alex | C138: Torres | D138: Frank Wilson | E138: 6 | F138: Pre-Algebra | G138: Mountain View | H138: 74 | I138: 83 | J138: 84 | K138: 83 | L138: =AVERAGE(H138:K138) -> 81 | M138: M
A139: 27307 | B139: Adam | C139: Bailey | D139: Kelly Williamson | E139: 7 | F139: Algebra 1 | G139: Ridge Crest | H139: 67 | I139: 74 | J139: 71 | K139: 76 | L139: =AVERAGE(H139:K139) -> 72 | M139: M
A140: 41669 | B140: Alicia | C140: Dunn | D140: Kelly Williamson | E140: 7 | F140: Algebra 1 | G140: Ridge Crest | H140: 66 | I140: 75 | J140: 73 | K140: 80 | L140: =AVERAGE(H140:K140) -> 73.5 | M140: F
A141: 38014 | B141: Bryan | C141: Gray | D141: Kelly Williamson | E141: 7 | F141: Algebra 1 | G141: Ridge Crest | H141: 72 | I141: 81 | J141: 76 | K141: 71 | L141: =AVERAGE(H141:K141) -> 75 | M141: M
A142: 27522 | B142: Jenna | C142: Gregory | D142: Kelly Williamson | E142: 7 | F142: Algebra 1 | G142: Ridge Crest | H142: 74 | I142: 81 | J142: 72 | K142: 77 | L142: =AVERAGE(H142:K142) -> 76 | M142: F
A143: 38358 | B143: Ana | C143: Hawkins | D143: Kelly Williamson | E143: 7 | F143: Algebra 1 | G143: Ridge Crest | H143: 79 | I143: 88 | J143: 85 | K143: 81 | L143: =AVERAGE(H143:K143) -> 83.25 | M143: F
A144: 35778 | B144: Nathan | C144: Howard | D144: Kelly Williamson | E144: 7 | F144: Algebra 1 | G144: Ridge Crest | H144: 82 | I144: 79 | J144: 84 | K144: 84 | L144: =AVERAGE(H144:K144) -> 82.25 | M144: M
A145: 25243 | B145: Jordyn | C145: Lane | D145: Kelly Williamson | E145: 7 | F145: Algebra 1 | G145: Ridge Crest | H145: 77 | I145: 85 | J145: 79 | K145: 84 | L145: =AVERAGE(H145:K145) -> 81.25 | M145: F
A146: 29027 | B146: Paige | C146: Obrien | D146: Kelly Williamson | E146: 7 | F146: Algebra 1 | G146: Ridge Crest | H146: 86 | I146: 93 | J146: 88 | K146: 87 | L146: =AVERAGE(H146:K146) -> 88.5 | M146: F
A147: 31822 | B147: Zoey | C147: Olson | D147: Kelly Williamson | E147: 7 | F147: Algebra 1 | G147: Ridge Crest | H147: 99 | I147: 97 | J147: 90 | K147: 94 | L147: =AVERAGE(H147:K147) -> 95 | M147: F
A148: 38788 | B148: Alexandra | C148: Pearson | D148: Kelly Williamson | E148: 7 | F148: Algebra 1 | G148: Ridge Crest | H148: 71 | I148: 78 | J148: 82 | K148: 82 | L148: =AVERAGE(H148:K148) -> 78.25 | M148: F
A149: 33671 | B149: Jake | C149: Wallace | D149: Kelly Williamson | E149: 7 | F149: Algebra 1 | G149: Ridge Crest | H149: 75 | I149: 75 | J149: 78 | K149: 77 | L149: =AVERAGE(H149:K149) -> 76.25 | M149: M
A150: 39777 | B150: Jose | C150: Wright | D150: Kelly Williamson | E150: 7 | F150: Algebra 1 | G150: Ridge Crest | H150: 80 | I150: 81 | J150: 85 | K150: 81 | L150: =AVERAGE(H150:K150) -> 81.75 | M150: M
A151: 34058 | B151: Logan | C151: Young | D151: Kelly Williamson | E151: 7 | F151: Algebra 1 | G151: Ridge Crest | H151: 67 | I151: 70 | J151: 75 | K151: 81 | L151: =AVERAGE(H151:K151) -> 73.25 | M151: M
A152: 35219 | B152: Melanie | C152: Alexander | D152: Kelly Williamson | E152: 6 | F152: Intro to Pre-Algebra | G152: Ridge Crest | H152: 88 | I152: 83 | J152: 88 | K152: 90 | L152: =AVERAGE(H152:K152) -> 87.25 | M152: F
A153: 41540 | B153: Jasmin | C153: Banks | D153: Kelly Williamson | E153: 6 | F153: Intro to Pre-Algebra | G153: Ridge Crest | H153: 80 | I153: 86 | J153: 82 | K153: 83 | L153: =AVERAGE(H153:K153) -> 82.75 | M153: F
A154: 40379 | B154: Brandon | C154: Clark | D154: Kelly Williamson | E154: 6 | F154: Intro to Pre-Algebra | G154: Ridge Crest | H154: 76 | I154: 81 | J154: 72 | K154: 67 | L154: =AVERAGE(H154:K154) -> 74 | M154: M
A155: 36079 | B155: Parker | C155: Ellis | D155: Kelly Williamson | E155: 6 | F155: Intro to Pre-Algebra | G155: Ridge Crest | H155: 60 | I155: 57 | J155: 58 | K155: 57 | L155: =AVERAGE(H155:K155) -> 58 | M155: M
A156: 25888 | B156: Edward | C156: Holmes | D156: Kelly Williamson | E156: 6 | F156: Intro to Pre-Algebra | G156: Ridge Crest | H156: 68 | I156: 69 | J156: 61 | K156: 65 | L156: =AVERAGE(H156:K156) -> 65.75 | M156: M
A157: 33284 | B157: Julian | C157: Kelly | D157: Kelly Williamson | E157: 6 | F157: Intro to Pre-Algebra | G157: Ridge Crest | H157: 76 | I157: 85 | J157: 83 | K157: 85 | L157: =AVERAGE(H157:K157) -> 82.25 | M157: M
A158: 37326 | B158: Vanessa | C158: Kelly | D158: Kelly Williamson | E158: 6 | F158: Intro to Pre-Algebra | G158: Ridge Crest | H158: 100 | I158: 95 | J158: 97 | K158: 100 | L158: =AVERAGE(H158:K158) -> 98 | M158: F
A159: 35649 | B159: Joel | C159: Kennedy | D159: Kelly Williamson | E159: 6 | F159: Intro to Pre-Algebra | G159: Ridge Crest | H159: 79 | I159: 85 | J159: 81 | K159: 75 | L159: =AVERAGE(H159:K159) -> 80 | M159: M
A160: 26963 | B160: Parker | C160: Ramos | D160: Kelly Williamson | E160: 6 | F160: Intro to Pre-Algebra | G160: Ridge Crest | H160: 58 | I160: 66 | J160: 58 | K160: 58 | L160: =AVERAGE(H160:K160) -> 60 | M160: M
A161: 28038 | B161: Sophia | C161: Stanley | D161: Kelly Williamson | E161: 6 | F161: Intro to Pre-Algebra | G161: Ridge Crest | H161: 58 | I161: 67 | J161: 68 | K161: 70 | L161: =AVERAGE(H161:K161) -> 65.75 | M161: F
A162: 27350 | B162: Oliver | C162: Warren | D162: Kelly Williamson | E162: 6 | F162: Intro to Pre-Algebra | G162: Ridge Crest | H162: 81 | I162: 83 | J162: 86 | K162: 83 | L162: =AVERAGE(H162:K162) -> 83.25 | M162: M
A163: 25673 | B163: Jesus | C163: Watson | D163: Kelly Williamson | E163: 6 | F163: Intro to Pre-Algebra | G163: Ridge Crest | H163: 78 | I163: 85 | J163: 87 | K163: 89 | L163: =AVERAGE(H163:K163) -> 84.75 | M163: M
A164: 40551 | B164: Dalton | C164: Willis | D164: Kelly Williamson | E164: 6 | F164: Intro to Pre-Algebra | G164: Ridge Crest | H164: 77 | I164: 74 | J164: 73 | K164: 77 | L164: =AVERAGE(H164:K164) -> 75.25 | M164: M
A165: 32123 | B165: Jeremiah | C165: Wood | D165: Kelly Williamson | E165: 6 | F165: Intro to Pre-Algebra | G165: Ridge Crest | H165: 69 | I165: 75 | J165: 74 | K165: 71 | L165: =AVERAGE(H165:K165) -> 72.25 | M165: M
A166: 27780 | B166: Breanna | C166: Boyd | D166: Kelly Williamson | E166: 7 | F166: Pre-Algebra | G166: Ridge Crest | H166: 72 | I166: 74 | J166: 66 | K166: 68 | L166: =AVERAGE(H166:K166) -> 70 | M166: F
A167: 36036 | B167: Megan | C167: Brewer | D167: Kelly Williamson | E167: 6 | F167: Pre-Algebra | G167: Ridge Crest | H167: 89 | I167: 99 | J167: 103 | K167: 98 | L167: =AVERAGE(H167:K167) -> 97.25 | M167: F
A168: 31005 | B168: Abraham | C168: Castillo | D168: Kelly Williamson | E168: 6 | F168: Pre-Algebra | G168: Ridge Crest | H168: 77 | I168: 72 | J168: 72 | K168: 74 | L168: =AVERAGE(H168:K168) -> 73.75 | M168: M
A169: 40164 | B169: Leslie | C169: Cole | D169: Kelly Williamson | E169: 7 | F169: Pre-Algebra | G169: Ridge Crest | H169: 77 | I169: 80 | J169: 74 | K169: 73 | L169: =AVERAGE(H169:K169) -> 76 | M169: F
A170: 28941 | B170: Timothy | C170: Coleman | D170: Kelly Williamson | E170: 6 | F170: Pre-Algebra | G170: Ridge Crest | H170: 60 | I170: 64 | J170: 69 | K170: 72 | L170: =AVERAGE(H170:K170) -> 66.25 | M170: M
A171: 37154 | B171: Brian | C171: Cooper | D171: Kelly Williamson | E171: 6 | F171: Pre-Algebra | G171: Ridge Crest | H171: 74 | I171: 75 | J171: 75 | K171: 76 | L171: =AVERAGE(H171:K171) -> 75 | M171: M
A172: 28726 | B172: Natalie | C172: Dean | D172: Kelly Williamson | E172: 6 | F172: Pre-Algebra | G172: Ridge Crest | H172: 81 | I172: 84 | J172: 79 | K172: 78 | L172: =AVERAGE(H172:K172) -> 80.5 | M172: F
A173: 30962 | B173: Molly | C173: Diaz | D173: Kelly Williamson | E173: 6 | F173: Pre-Algebra | G173: Ridge Crest | H173: 86 | I173: 86 | J173: 76 | K173: 74 | L173: =AVERAGE(H173:K173) -> 80.5 | M173: F
A174: 35434 | B174: Luke | C174: Evans | D174: Kelly Williamson | E174: 7 | F174: Pre-Algebra | G174: Ridge Crest | H174: 87 | I174: 90 | J174: 89 | K174: 95 | L174: =AVERAGE(H174:K174) -> 90.25 | M174: M
A175: 27737 | B175: Henry | C175: Ford | D175: Kelly Williamson | E175: 6 | F175: Pre-Algebra | G175: Ridge Crest | H175: 72 | I175: 76 | J175: 73 | K175: 76 | L175: =AVERAGE(H175:K175) -> 74.25 | M175: M
A176: 30532 | B176: Jaden | C176: Foster | D176: Kelly Williamson | E176: 7 | F176: Pre-Algebra | G176: Ridge Crest | H176: 79 | I176: 87 | J176: 83 | K176: 80 | L176: =AVERAGE(H176:K176) -> 82.25 | M176: M
A177: 27651 | B177: Brandon | C177: Garcia | D177: Kelly Williamson | E177: 7 | F177: Pre-Algebra | G177: Ridge Crest | H177: 78 | I177: 81 | J177: 74 | K177: 68 | L177: =AVERAGE(H177:K177) -> 75.25 | M177: M
A178: 31908 | B178: Stephanie | C178: Herrera | D178: Kelly Williamson | E178: 6 | F178: Pre-Algebra | G178: Ridge Crest | H178: 56 | I178: 62 | J178: 52 | K178: 49 | L178: =AVERAGE(H178:K178) -> 54.75 | M178: F
A179: 25544 | B179: Jada | C179: Hughes | D179: Kelly Williamson | E179: 6 | F179: Pre-Algebra | G179: Ridge Crest | H179: 71 | I179: 78 | J179: 74 | K179: 73 | L179: =AVERAGE(H179:K179) -> 74 | M179: F
A180: 26619 | B180: Ava | C180: Jacobs | D180: Kelly Williamson | E180: 6 | F180: Pre-Algebra | G180: Ridge Crest | H180: 79 | I180: 88 | J180: 93 | K180: 89 | L180: =AVERAGE(H180:K180) -> 87.25 | M180: F
A181: 37756 | B181: Matthew | C181: Jones | D181: Kelly Williamson | E181: 7 | F181: Pre-Algebra | G181: Ridge Crest | H181: 89 | I181: 91 | J181: 83 | K181: 84 | L181: =AVERAGE(H181:K181) -> 86.75 | M181: M
A182: 35090 | B182: Jade | C182: Jordan | D182: Kelly Williamson | E182: 6 | F182: Pre-Algebra | G182: Ridge Crest | H182: 78 | I182: 85 | J182: 81 | K182: 80 | L182: =AVERAGE(H182:K182) -> 81 | M182: F
A183: 28296 | B183: Erick | C183: Kelley | D183: Kelly Williamson | E183: 6 | F183: Pre-Algebra | G183: Ridge Crest | H183: 67 | I183: 63 | J183: 64 | K183: 63 | L183: =AVERAGE(H183:K183) -> 64.25 | M183: M
A184: 30403 | B184: Andres | C184: Lane | D184: Kelly Williamson | E184: 7 | F184: Pre-Algebra | G184: Ridge Crest | H184: 65 | I184: 74 | J184: 67 | K184: 69 | L184: =AVERAGE(H184:K184) -> 68.75 | M184: M
A185: 25458 | B185: Grant | C185: Nichols | D185: Kelly Williamson | E185: 7 | F185: Pre-Algebra | G185: Ridge Crest | H185: 67 | I185: 70 | J185: 70 | K185: 76 | L185: =AVERAGE(H185:K185) -> 70.75 | M185: M
A186: 40336 | B186: Charlotte | C186: Palmer | D186: Kelly Williamson | E186: 6 | F186: Pre-Algebra | G186: Ridge Crest | H186: 68 | I186: 73 | J186: 71 | K186: 72 | L186: =AVERAGE(H186:K186) -> 71 | M186: F
A187: 26275 | B187: Mason | C187: Parker | D187: Kelly Williamson | E187: 6 | F187: Pre-Algebra | G187: Ridge Crest | H187: 81 | I187: 88 | J187: 80 | K187: 77 | L187: =AVERAGE(H187:K187) -> 81.5 | M187: M
A188: 25028 | B188: Ariana | C188: Powell | D188: Kelly Williamson | E188: 7 | F188: Pre-Algebra | G188: Ridge Crest | H188: 75 | I188: 80 | J188: 71 | K188: 64 | L188: =AVERAGE(H188:K188) -> 72.5 | M188: F
A189: 39906 | B189: Taylor | C189: Reid | D189: Kelly Williamson | E189: 6 | F189: Pre-Algebra | G189: Ridge Crest | H189: 55 | I189: 64 | J189: 59 | K189: 53 | L189: =AVERAGE(H189:K189) -> 57.75 | M189: F
A190: 30747 | B190: Edward | C190: Rice | D190: Kelly Williamson | E190: 6 | F190: Pre-Algebra | G190: Ridge Crest | H190: 79 | I190: 85 | J190: 90 | K190: 87 | L190: =AVERAGE(H190:K190) -> 85.25 | M190: M
A191: 33499 | B191: Delaney | C191: Richards | D191: Kelly Williamson | E191: 7 | F191: Pre-Algebra | G191: Ridge Crest | H191: 68 | I191: 66 | J191: 70 | K191: 76 | L191: =AVERAGE(H191:K191) -> 70 | M191: F
A192: 34703 | B192: Jonah | C192: Riley | D192: Kelly Williamson | E192: 7 | F192: Pre-Algebra | G192: Ridge Crest | H192: 74 | I192: 78 | J192: 77 | K192: 71 | L192: =AVERAGE(H192:K192) -> 75 | M192: M
A193: 38229 | B193: Angel | C193: Roberts | D193: Kelly Williamson | E193: 7 | F193: Pre-Algebra | G193: Ridge Crest | H193: 67 | I193: 69 | J193: 74 | K193: 79 | L193: =AVERAGE(H193:K193) -> 72.25 | M193: M
A194: 36767 | B194: Sebastian | C194: Ross | D194: Kelly Williamson | E194: 6 | F194: Pre-Algebra | G194: Ridge Crest | H194: 58 | I194: 65 | J194: 59 | K194: 54 | L194: =AVERAGE(H194:K194) -> 59 | M194: M
A195: 4565281 | B195: John | C195: Smith | D195: Kelly Williamson | E195: 6 | F195: Pre-Algebra | G195: Mountain View | I195: 100 | J195: 56 | L195: =AVERAGE(H195:K195) -> 78 | M195: M
A196: 26318 | B196: Mckenzie | C196: Spencer | D196: Kelly Williamson | E196: 6 | F196: Pre-Algebra | G196: Ridge Crest | H196: 89 | I196: 89 | J196: 90 | K196: 88 | L196: =AVERAGE(H196:K196) -> 89 | M196: F
A197: 38616 | B197: Sabrina | C197: Stephens | D197: Kelly Williamson | E197: 6 | F197: Pre-Algebra | G197: Ridge Crest | H197: 63 | I197: 72 | J197: 69 | K197: 63 | L197: =AVERAGE(H197:K197) -> 66.75 | M197: F
A198: 36552 | B198: Shelby | C198: Wallace | D198: Kelly Williamson | E198: 7 | F198: Pre-Algebra | G198: Ridge Crest | H198: 63 | I198: 72 | J198: 68 | K198: 64 | L198: =AVERAGE(H198:K198) -> 66.75 | M198: F
A199: 28984 | B199: Victoria | C199: Welch | D199: Kelly Williamson | E199: 7 | F199: Pre-Algebra | G199: Ridge Crest | H199: 97 | I199: 93 | J199: 83 | K199: 82 | L199: =AVERAGE(H199:K199) -> 88.75 | M199: F
A200: 35348 | B200: Nicholas | C200: White | D200: Kelly Williamson | E200: 7 | F200: Pre-Algebra | G200: Ridge Crest | H200: 90 | I200: 93 | J200: 84 | K200: 78 | L200: =AVERAGE(H200:K200) -> 86.25 | M200: M
... 202 more rows

Sheet Teacher Data
A1: First Name | B1: Last Name | C1: Training 1 Completed | D1: Training 1 Score | E1: Training 2 Completed | F1: Training 2 Score | G1: Teacher Rating
A2: Frank | B2: Wilson | C2: 2009-09-11 | D2: 85 | E2: 2009-12-02 | F2: 90 | G2: 3
A3: Linda | B3: Tracy | C3: 2009-03-21 | D3: 88 | E3: 2009-06-07 | F3: 86 | G3: 2
A4: Barbara | B4: Hansen | C4: 2009-09-11 | D4: 92 | E4: 2009-12-02 | F4: 90 | G4: 3
A5: Shelley | B5: Robinson | C5: 2011-03-18 | D5: 89 | E5: 2011-06-12 | F5: 88 | G5: 3
A6: Kelly | B6: Williamson | C6: 2010-09-15 | D6: 95 | E6: 2010-12-04 | F6: 99 | G6: 4
A7: Robert | B7: Samuels | C7: 2011-03-18 | D7: 98 | E7: 2011-06-12 | F7: 96 | G7: 4
D18: =PERCENTRANK(Table1[Training 1 Score],D5) -> 0.4

Sheet Statistics
D3: Statistics
C5: Class: | D5: Algebra 1 | H5: This sample is | I5: lower | J5: than average database scores.
C7: Teacher:
C9: Test: | D9: Test 2
C11: Stats for Sample | I11: Stats for Database
D12: Total | E12: Female | F12: Male | J12: Total | K12: Female | L12: Male
C13: Mean | D13: 75.7835083 | E13: 76.85185242 | F13: 74.44186401 | I13: Mean | J13: 75.89743805 | K13: 38.32954407 | L13: 37.35227203
C14: Median | D14: 75 | E14: 74.5 | F14: 75 | I14: Median | J14: 75 | K14: 54 | L14: 0
C15: Mode | D15: 74 | E15: 74 | F15: 76 | I15: Mode | J15: 74 | K15: 0 | L15: 0
C16: Std Dev | D16: 8.667740822 | E16: 9.411769867 | F16: 7.525519371 | I16: Std Dev | J16: 9.361365318 | K16: 38.72864914 | L16: 38.41082001
C18: Number of Students in Sample | I18: Number of Students in Sample
D19: Total: | E19: 97 | J19: Total: | K19: 351
D21: Male: | E21: 43 | J21: Male: | K21: 174
D23: Female: | E23: 54 | J23: Female: | K23: 177

Sheet Decile
D2: Students in Top Decile | G2: Students in Bottom Decile
D5: Malachi Ryan | G5: Robert Adams
D6: Jesse Diaz | G6: Rachel Bowman
D7: Victor Hamilton | G7: Carson Griffin
D8: Wyatt Perry | G8: Skylar Wagner
D9: Noah Robinson | G9: Savannah Carlson
D10: Madeline Caldwell | G10: Sadie Duncan
D11: Trinity Jimenez | G11: Tiffany Fox
D12: Luis Murphy | G12: Shane Ray
D13: Wesley Franklin | G13: Edwin Sims
D14: Vincent Gibson | G14: Lauren Fuller
D15: Paige Obrien | G15: Connor James
D16: Zoey Olson | G16: Damian Olson
D17: Melanie Alexander | G17: Katelyn Jennings
D18: Vanessa Kelly | G18: Tanner Gordon
D19: Megan Brewer | G19: Aaron Sanchez
D20: Luke Evans | G20: Julia Day
D21: Ava Jacobs | G21: Shawn Harper
D22: Matthew Jones | G22: Ryan Harris
D23: Mckenzie Spencer | G23: Sara Mckinney
D24: Victoria Welch | G24: Spencer Perkins
D25: Valerie Arnold | G25: Parker Ellis
D26: Madison Bishop | G26: Parker Ramos
D27: Valeria Holmes | G27: Stephanie Herrera
D28: Mia Larson | G28: Taylor Reid
D29: Oliver Lawson | G29: Sebastian Ross
D30: Zachary Allen | G30: Jessica Garrett
D31: Nathan Hall | G31: Gracie Kennedy
D32: Olivia Howell | G32: Rylee Matthews
D33: Tyler Martin | G33: Trenton Fields
D34: Zoe Walters | G34: Sierra Russell
D35: Madelyn Ford | G35: Sydney Burke
D36: Maria Fleming | G36: Rebecca Lucas
D37: Veronica Castillo | G37: Travis Snyder
D38: Andrea Soto | G38: Lillian Wade
D39: Raymond Carr | G39: Ryan Anderson
D40: Makayla Byrd | G40: Trevor Graham
D41: Tristan Hayes | G41: Peter Watkins
D42: Xavier Henderson | G42: Samuel Lee
D43: Lilly Wheeler | G43: Stephen Mills
D44: Mary Barrett | G44: Patrick Russell
D45: Max Spencer | G45: Riley Woods
D370: Jeremy Jordan
D372: Stephen Mills
D378: Patrick Russell
D407: Riley Woods
